bitfinex-derivatives/quotes_ETHF0:USTF0_20250422
["timestamp","ask_amount","ask_price","bid_price","bid_amount"]
[1745345487430,1.17567,1700.1,1700.0,1.345]
[1745345487638,1.17565,1700.2,1700.0,1.345]
[1745345487933,1.17567,1700.1,1700.0,1.345]
[1745345489736,1.17578,1700.0,1699.8,2.54607]
[1745345490036,1.17569,1700.1,1699.9,1.17574]
[1745345490248,2.79306,1700.2,1700.0,7.49774]
[1745345490438,1.17566,1700.2,1700.0,7.49774]
[1745345490830,16.6316,1700.4,1700.0,6.322]
[1745345491031,13.66026,1700.4,1700.0,6.322]
[1745345491338,1.17574,1700.0,1699.8,9.75262]
[1745345491534,3.2078,1700.2,1699.8,8.5768]
[1745345491738,1.17571,1700.1,1699.9,1.17578]
[1745345492037,1.17576,1700.0,1699.8,9.75262]
[1745345492240,1.17566,1700.2,1700.0,1.17573]
[1745345492539,1.17574,1700.0,1699.9,6.322]
[1745345492736,1.6822,1700.1,1699.9,6.322]
[1745345492938,4.38354,1700.0,1699.9,6.322]
[1745345493138,4.38354,1700.0,1699.8,9.75262]
[1745345493328,1.17574,1700.0,1699.8,9.75262]
[1745345494134,2.93885,1700.3,1699.8,14.8988]
[1745345494338,1.17569,1700.1,1699.9,1.17577]
[1745345494539,1.17569,1700.1,1700.0,1.17574]
[1745345494735,1.17569,1700.1,1699.9,1.17577]
[1745345494932,4.38351,1700.1,1699.9,1.17577]
[1745345495239,4.38351,1700.1,1700.0,1.17574]
[1745345495439,1.17571,1700.1,1700.0,1.17574]
[1745345495640,1.17571,1700.1,1699.9,7.49775]
[1745345496041,4.38351,1700.1,1699.9,7.49775]
[1745345496539,1.17574,1700.0,1699.9,6.322]
[1745345496732,1.17572,1700.1,1699.9,7.49778]
[1745345496933,1.17572,1700.1,1699.9,7.49775]
[1745345497442,4.38352,1700.1,1699.9,7.49775]
[1745345497943,4.38352,1700.1,1700.0,1.7366]
[1745345498137,1.17563,1700.2,1700.0,9.23434]
[1745345498343,1.17565,1700.2,1700.0,9.23431]
[1745345498545,1.17567,1700.1,1700.0,8.0586]
[1745345499941,4.38347,1700.1,1700.0,8.0586]
[1745345500139,4.38347,1700.1,1700.0,1.7366]
[1745345500450,1.17567,1700.1,1700.0,1.7366]
[1745345500834,1.17587,1699.8,1699.7,6.322]
[1745345501043,1.17622,1699.3,1699.2,2.8066]
[1745345501236,2.94024,1699.5,1699.1,7.70742494]
[1745345501237,1.17629,1699.2,1699.1,7.70742494]
[1745345501439,1.17629,1699.2,1699.1,11.56113741]
[1745345501643,3.2078,1699.9,1699.2,2.94073]
[1745345501835,2.93936,1700.0,1699.5,1.17603]
[1745345502032,1.17581,1699.9,1699.7,1.17594]
[1745345502345,15.95293,1700.2,1699.9,1.17578]
[1745345502346,1.17568,1700.1,1699.9,1.17578]
[1745345502544,1.17176052,1700.1,1699.9,1.17578]
[1745345502740,1.17176052,1700.1,1700.0,1.7703]
[1745345503241,1.17176052,1700.1,1700.0,8.0923]
[1745345504043,0.00881238,1700.2,1700.0,8.0923]
[1745345504238,0.00881238,1700.2,1700.1,2.90867]
[1745345504435,0.00881238,1700.2,1700.1,4.34757]
[1745345506139,1.1754,1700.5,1700.3,1.17551]
[1745345506339,1.17536,1700.6,1700.4,1.6178]
[1745345506542,41.9753,1700.7,1700.4,1.6178]
[1745345506748,1.1753,1700.7,1700.5,2.8659]
[1745345506935,1.17532,1700.6,1700.5,2.8659]
[1745345508153,1.17532,1700.6,1700.5,1.6178]
[1745345508341,2.86562,1700.6,1700.5,1.6178]
[1745345509448,3.21661238,1700.7,1700.5,1.6178]
[1745345509642,1.17532,1700.6,1700.5,1.6178]
[1745345510250,1.17532,1700.6,1700.5,7.9398]
[1745345510748,0.00881238,1700.7,1700.5,7.9398]
[1745345510948,1.18406238,1700.7,1700.6,1.73]
[1745345511248,0.00881238,1700.7,1700.6,4.23592]
[1745345511441,0.00881238,1700.7,1700.6,3.0606]
[1745345512349,1.18406238,1700.7,1700.6,3.0606]
[1745345512548,0.00881238,1700.7,1700.6,3.0606]
[1745345512941,0.00881238,1700.7,1700.6,4.23592]
[1745345513445,1.18406238,1700.7,1700.6,3.0606]
[1745345513948,4.39186238,1700.7,1700.6,3.0606]
[1745345514349,4.39186238,1700.7,1700.6,1.73]
[1745345514945,1.18406238,1700.7,1700.6,1.73]
[1745345515854,0.00881238,1700.7,1700.6,1.73]
[1745345516040,1.18406238,1700.7,1700.6,2.90532]
[1745345516240,1.18406238,1700.7,1700.6,1.73]
[1745345516649,1.18406238,1700.7,1700.6,2.90532]
[1745345516849,1.18406238,1700.7,1700.6,1.73]
[1745345518049,1.17539,1700.5,1700.4,1.18427238]
[1745345518254,1.17539,1700.5,1700.4,1.66271238]
[1745345518642,2.85908,1700.6,1700.4,2.83817238]
[1745345519148,2.85908,1700.6,1700.5,1.6539]
[1745345520451,0.00881238,1700.7,1700.4,3.21661238]
[1745345520652,1.18409238,1700.7,1700.5,1.17536]
[1745345520852,1.17532,1700.6,1700.5,2.82926]
[1745345521453,1.17532,1700.6,1700.5,1.6539]
[1745345521646,1.18412238,1700.7,1700.5,1.6539]
[1745345521841,0.00881238,1700.7,1700.6,1.17532]
[1745345522359,0.00881238,1700.7,1700.5,13.59824]
[1745345522551,1.18412238,1700.7,1700.6,1.6125]
[1745345524048,1.18406238,1700.7,1700.6,2.78782]
[1745345524357,0.00881238,1700.7,1700.6,2.78782]
[1745345525056,0.00881238,1700.7,1700.6,5.99562]
[1745345527561,9.1178,1701.6,1700.6,15.6423]
[1745345527861,1.17485,1701.3,1701.1,1.17492]
[1745345528158,1.17485,1701.3,1701.2,1.6486]
[1745345528561,2.83451,1701.4,1701.2,1.6486]
[1745345528761,2.84331238,1701.4,1701.2,2.82349]
[1745345529352,1.66851238,1701.4,1701.3,2.82344]
[1745345529951,0.00881238,1701.4,1701.3,2.82344]
[1745345530550,1.18358238,1701.4,1701.3,1.6486]
[1745345530755,2.83778238,1701.4,1701.3,1.6486]
[1745345531450,2.93742,1701.2,1700.4,0.00881238]
[1745345531652,1.17519,1700.8,1700.6,1.17528]
[1745345531949,6.14559,1701.0,1700.5,3.2078]
[1745345531950,1.17528,1700.7,1700.5,1.4323]
[1745345532149,1.17528,1700.7,1700.5,4.37518]
[1745345532458,6.03725,1700.8,1700.5,4.37518]
[1745345532657,1.6542,1700.7,1700.6,1.7675]
[1745345532867,2.82945,1700.7,1700.6,1.7675]
[1745345533053,1.17539,1700.5,1700.4,0.00881238]
[1745345533450,4.26027,1700.6,1700.4,1.70811238]
[1745345533652,1.4307,1700.6,1700.4,1.70811238]
[1745345533859,4.2554,1700.7,1700.5,1.17539]
[1745345534159,2.60588,1700.8,1700.6,1.17532]
[1745345534360,2.60588,1700.8,1700.7,1.6993]
[1745345534553,1.4307,1700.8,1700.7,2.87455]
[1745345534749,1.7162,1700.9,1700.8,1.17518]
[1745345534951,7.17743,1701.1,1700.8,2.87442]
[1745345535151,4.5108,1701.1,1700.8,1.6993]
[1745345535455,1.17491,1701.2,1701.0,1.175]
[1745345535658,2.8911,1701.3,1701.1,1.6993]
[1745345536060,1.17491,1701.2,1701.1,1.6993]
[1745345536957,2.80131,1701.2,1701.1,1.6993]
[1745345537860,1.17498,1701.1,1701.0,4.423]
[1745345538056,2.80138,1701.1,1700.9,9.98729]
[1745345538261,1.6264,1701.1,1701.0,1.6824]
[1745345538662,2.80138,1701.1,1701.0,1.6824]
[1745345538856,2.80138,1701.1,1700.9,2.7078]
[1745345539159,2.80144,1701.0,1700.9,3.0801]
[1745345539965,1.17517,1700.9,1700.8,4.422]
[1745345540267,1.17517,1700.9,1700.6,4.6465]
[1745345540268,1.17518,1700.8,1700.6,8.80511]
[1745345540460,1.6484,1700.7,1700.6,8.80511]
[1745345540662,1.6484,1700.7,1700.6,10.56631]
[1745345541258,3.2078,1700.9,1700.7,1.17521]
[1745345541561,4.8562,1700.9,1700.8,1.17518]
[1745345541860,3.95266,1701.0,1700.8,1.17514]
[1745345542162,1.17512,1700.9,1700.7,1.7612]
[1745345542366,2.82352,1700.9,1700.7,2.9364]
[1745345542552,1.17518,1700.8,1700.7,1.7612]
[1745345542868,2.88138,1700.8,1700.7,1.7612]
[1745345543959,1.7062,1700.8,1700.7,2.93645]
[1745345544156,5.9854,1701.0,1700.9,1.17511]
[1745345544465,7.16045,1701.0,1700.8,2.88092]
[1745345544761,7.16045,1701.0,1700.9,1.7058]
[1745345545152,5.9854,1701.0,1700.9,2.88091]
[1745345545555,8.81694,1701.0,1700.8,1.17512]
[1745345545861,1.6565,1700.9,1700.8,2.89372]
[1745345546563,5.9854,1701.0,1700.9,1.17511]
[1745345546764,5.9854,1701.0,1700.9,2.89371]
[1745345547058,1.6565,1701.2,1701.0,1.17499]
[1745345547059,1.17495,1701.2,1701.0,1.17499]
[1745345547257,2.83145,1701.2,1701.0,2.89359]
[1745345547766,1.6565,1701.2,1701.1,1.17498]
[1745345548460,2.6759,1701.3,1701.2,1.17491]
[1745345548664,8.82324,1701.3,1701.1,1.17492]
[1745345548866,1.7647,1701.2,1701.1,2.80842]
[1745345549068,2.93961,1701.2,1701.0,1.17502]
[1745345549367,2.93962,1701.2,1701.0,1.17498]
[1745345549659,1.7647,1701.2,1701.1,1.17498]
[1745345549866,2.93962,1701.2,1701.0,2.80849]
[1745345550271,1.7647,1701.1,1701.0,2.80849]
[1745345550764,2.93968,1701.1,1701.0,1.6335]
[1745345550959,2.93968,1701.1,1700.9,5.59709]
[1745345551165,1.7647,1701.1,1701.0,1.17504]
[1745345551365,1.7647,1701.1,1701.0,2.80854]
[1745345552066,1.17491,1701.2,1701.0,2.80849]
[1745345552370,2.91171,1701.2,1701.0,2.80849]
[1745345552867,1.7368,1701.1,1701.0,2.80849]
[1745345553561,2.91178,1701.1,1701.0,1.17499]
[1745345553758,2.91178,1701.1,1700.9,5.59707]
[1745345553962,1.7368,1701.0,1700.9,5.59707]
[1745345554159,2.91184,1701.0,1700.8,2.82202]
[1745345554476,1.17511,1700.9,1700.7,1.17523]
[1745345554661,5.56411,1700.9,1700.7,1.17523]
[1745345555070,2.91811,1700.8,1700.6,16.27398]
[1745345555367,1.7429,1700.7,1700.6,10.45198]
[1745345555763,1.7429,1700.7,1700.6,7.24418]
[1745345556067,2.91815,1700.7,1700.5,1.17534]
[1745345556365,2.91819,1700.7,1700.5,1.17537]
[1745345556570,1.1752,1700.8,1700.6,1.17532]
[1745345556757,1.17524,1700.8,1700.5,1.6823]
[1745345556962,1.17529,1700.7,1700.5,2.85768]
[1745345557163,4.38309,1700.7,1700.5,1.6823]
[1745345557361,4.38309,1700.7,1700.5,2.85767]
[1745345557568,1.17532,1700.6,1700.4,7.04993238]
[1745345557777,1.17532,1700.6,1700.4,8.73223238]
[1745345557963,4.38311,1700.7,1700.4,8.73223238]
[1745345558563,1.17534,1700.6,1700.4,8.73223238]
[1745345558759,3.2078,1700.7,1700.4,8.73223238]
[1745345558760,4.38319,1700.5,1700.4,0.00881238]
[1745345559070,6.0139,1700.5,1700.4,0.00881238]
[1745345559266,6.0139,1700.5,1700.4,1.18427238]
[1745345559468,6.0139,1700.5,1700.4,0.00881238]
[1745345559667,7.18929,1700.5,1700.4,0.00881238]
[1745345560273,47.98929,1700.5,1700.4,0.00881238]
[1745345560864,2.93878,1700.4,1699.7,7.59025]
[1745345561174,1.17574,1700.0,1699.9,1.17578]
[1745345561371,4.38352,1700.1,1699.9,1.17578]
[1745345561573,3.2078,1700.1,1700.0,1.17574]
[1745345561764,52.86662,1700.5,1699.8,4.56535]
[1745345561765,53.1359,1700.5,1700.1,2.93907]
[1745345561963,53.14471238,1700.5,1700.4,1.17546]
[1745345562167,46.82271238,1700.5,1700.4,1.17546]
[1745345562368,47.99810238,1700.5,1700.3,2.80119]
[1745345562676,1.17551,1700.4,1700.2,1.17558]
[1745345562968,3.2078,1700.3,1700.1,0.00881238]
[1745345563163,3.2078,1700.3,1700.2,1.1756]
[1745345563366,3.2078,1700.3,1700.2,2.8013]
[1745345563671,3.2078,1700.3,1700.2,1.6257]
[1745345563867,1.17551,1700.4,1700.2,2.8013]
[1745345564069,1.17546,1700.4,1700.2,2.80128]
[1745345564473,47.99814238,1700.5,1700.3,1.17552]
[1745345564663,47.99814238,1700.5,1700.3,2.93052]
[1745345564867,47.99814238,1700.5,1700.3,2.68052]
[1745345565169,47.99811238,1700.5,1700.3,2.93048]
[1745345565371,44.79031238,1700.5,1700.4,1.755]
[1745345565570,47.99811238,1700.5,1700.4,1.755]
[1745345565770,44.79031238,1700.5,1700.4,1.755]
[1745345565975,47.99811238,1700.5,1700.4,1.755]
[1745345566565,46.82271238,1700.5,1700.4,1.755]
[1745345566771,48.47191238,1700.5,1700.4,1.755]
[1745345567068,44.01661238,1700.5,1700.4,2.93046]
[1745345567276,45.19200238,1700.5,1700.4,1.755]
[1745345567482,45.19200238,1700.5,1700.4,2.93046]
[1745345567483,44.01661238,1700.5,1700.4,2.93046]
[1745345567671,45.19200238,1700.5,1700.4,1.755]
[1745345568072,46.91720238,1700.5,1700.4,1.755]
[1745345569779,46.91720238,1700.5,1700.4,2.93046]
[1745345569976,45.74181238,1700.5,1700.4,2.93046]
[1745345570182,0.00881238,1700.5,1700.4,2.93046]
[1745345571070,0.00881238,1700.5,1700.4,9.25246]
[1745345571276,3.2078,1700.7,1700.6,1.17532]
[1745345571477,4.38308,1700.7,1700.5,1.17534]
[1745345571678,4.38308,1700.7,1700.6,1.7524]
[1745345572185,1.17534,1700.6,1700.4,1.4216]
[1745345572480,2.88494,1700.6,1700.4,4.34941]
[1745345572870,1.17539,1700.5,1700.4,3.174]
[1745345573070,2.88499,1700.5,1700.4,1.7524]
[1745345573282,1.7096,1700.5,1700.4,2.92786]
[1745345573483,2.88499,1700.5,1700.4,1.7524]
[1745345573685,1.17548,1700.4,1700.2,5.8695]
[1745345573875,1.694,1700.4,1700.3,1.17551]
[1745345574074,1.694,1700.4,1700.3,2.79891]
[1745345574381,2.86947,1700.4,1700.3,1.6234]
[1745345574974,1.17553,1700.3,1700.2,1.4125]
[1745345575176,2.86953,1700.3,1700.2,1.4125]
[1745345575478,1.694,1700.3,1700.2,1.1756]
[1745345575682,2.86953,1700.3,1700.2,1.1756]
[1745345575882,1.694,1700.3,1700.2,1.1756]
[1745345576083,1.694,1700.3,1700.2,2.799]
[1745345577178,3.2078,1700.5,1700.4,1.17546]
[1745345577382,2.7567,1700.6,1700.2,4.56233]
[1745345577383,2.7567,1700.6,1700.3,1.7053]
[1745345577688,1.17539,1700.5,1700.3,2.88077]
[1745345577986,1.17539,1700.5,1700.4,2.88076]
[1745345578381,1.7758,1700.5,1700.4,2.88076]
[1745345578581,10.30182238,1700.8,1700.4,1.7053]
[1745345578781,2.95982238,1700.8,1700.5,3.1256]
[1745345578982,6.16762238,1700.8,1700.6,1.7053]
[1745345579182,2.95982238,1700.8,1700.6,1.7053]
[1745345579682,1.6119,1700.7,1700.6,1.7053]
[1745345580486,1.6119,1700.7,1700.6,2.88062]
[1745345580988,1.6119,1700.7,1700.6,1.7053]
[1745345581388,1.6119,1700.7,1700.6,2.88062]
[1745345581789,1.6119,1700.7,1700.6,1.7053]
[1745345581993,2.78715,1700.7,1700.6,1.7053]
[1745345582785,2.78715,1700.7,1700.5,2.59565]
[1745345582974,0.00881238,1700.8,1700.7,1.17525]
[1745345583380,1.18403238,1700.8,1700.6,2.9533]
[1745345583585,4.39183238,1700.8,1700.7,1.778]
[1745345583782,0.00881238,1700.8,1700.5,2.59564]
[1745345583989,4.82521238,1700.8,1700.6,1.17532]
[1745345584180,2.78385,1700.7,1700.6,1.778]
[1745345584382,5.99165,1700.7,1700.6,1.778]
[1745345584583,4.8164,1700.7,1700.6,1.778]
[1745345584889,2.78385,1700.7,1700.6,1.778]
[1745345586187,1.6086,1700.7,1700.6,1.778]
[1745345586490,2.78385,1700.7,1700.6,1.778]
[1745345587292,1.6086,1700.7,1700.6,1.778]
[1745345587797,0.00881238,1700.8,1700.6,2.95332]
[1745345587993,1.63771238,1700.8,1700.7,1.17525]
[1745345588188,1.63771238,1700.8,1700.7,1.7648]
[1745345588887,1.63771238,1700.8,1700.7,2.94005]
[1745345589490,1.63771238,1700.8,1700.7,1.7648]
[1745345589887,1.63771238,1700.8,1700.7,2.94005]
[1745345592289,1.63771238,1700.8,1700.7,1.17525]
[1745345594496,6.63771238,1700.8,1700.7,1.17525]
[1745345594896,12.23689238,1700.8,1700.7,1.17525]
[1745345595192,12.23689238,1700.8,1700.5,5.87694]
[1745345595193,23.29371238,1700.8,1700.3,2.93869]
[1745345595398,2.79128,1700.7,1700.6,1.17528]
[1745345595587,4.8238,1700.7,1700.6,1.17528]
[1745345596194,11.1458,1700.7,1700.6,1.17528]
[1745345598783,17.32105,1700.7,1700.6,1.17528]
[1745345599191,1.17557,1700.3,1700.1,0.00881238]
[1745345599396,4.425,1700.3,1700.2,1.1756]
[1745345599598,7.6328,1700.3,1700.2,1.1756]
[1745345599795,9.3137,1700.3,1700.2,1.1756]
[1745345600395,3.2078,1700.3,1700.2,1.1756]
[1745345601493,3.2078,1700.3,1700.1,0.00881238]
[1745345601695,1.6201,1700.2,1700.1,1.18445238]
[1745345601892,3.0508,1700.2,1700.1,1.18445238]
[1745345602193,4.2264,1700.2,1700.1,1.18445238]
[1745345603600,10.1364,1700.2,1700.1,0.00881238]
[1745345603993,10.1364,1700.2,1700.1,1.18448238]
[1745345605288,3.0508,1700.2,1700.1,1.18448238]
[1745345605891,3.0508,1700.2,1700.1,2.81448238]
[1745345607396,4.2264,1700.2,1700.1,2.81448238]
[1745345607604,3.0508,1700.2,1700.1,2.81448238]
[1745345609097,4.2264,1700.2,1700.1,0.00881238]
[1745345610604,4.2264,1700.2,1700.0,1.17571]
[1745345610605,1.17573,1700.1,1700.0,1.17571]
[1745345610906,3.2078,1700.1,1700.0,1.17571]
[1745345611399,4.38347,1700.1,1700.0,1.17571]
[1745345611801,6.00217,1700.1,1700.0,1.17571]
[1745345612895,1.17574,1700.0,1699.9,0.00881238]
[1745345613199,1.17593,1699.8,1699.7,1.17591]
[1745345613399,1.17593,1699.8,1699.6,1.665]
[1745345613400,1.17594,1699.7,1699.6,2.84097]
[1745345613602,43.67964,1699.7,1699.6,2.84097]
[1745345614000,1.17612,1699.5,1699.4,1.17613]
[1745345614195,3.2078,1699.5,1699.2,2.7527]
[1745345614402,4.9115,1699.4,1699.0,19.33120006]
[1745345614602,4.9115,1699.4,1699.3,1.17622]
[1745345614799,3.2078,1699.4,1699.3,1.17622]
[1745345615106,3.2078,1699.4,1699.3,7.49822]
[1745345615402,3.2078,1699.4,1699.3,6.322]
[1745345615602,4.38395,1699.4,1699.3,6.322]
[1745345615801,4.38395,1699.4,1699.3,7.987]
[1745345616211,4.38395,1699.4,1699.3,6.322]
[1745345616407,5.69575,1699.4,1699.3,6.322]
[1745345616713,7.44805,1699.4,1699.3,6.322]
[1745345617508,12.44805,1699.4,1699.3,6.322]
[1745345618006,12.44805,1699.4,1699.3,5.992]
[1745345618203,12.44805,1699.4,1699.0,1.17642]
[1745345618204,2.94063,1699.3,1698.9,2.88305]
[1745345618410,1.17643,1699.0,1698.9,1.17645]
[1745345618608,1.17643,1699.0,1698.9,2.88305]
[1745345618814,2.92873,1699.0,1698.9,2.88305]
[1745345619009,3.2078,1699.1,1699.0,1.17643]
[1745345619310,3.2078,1699.1,1699.0,2.83103]
[1745345620207,3.2078,1699.1,1699.0,9.15303]
[1745345620399,4.38416,1699.1,1699.0,6.322]
[1745345620604,3.2078,1699.1,1699.0,7.49843]
[1745345620808,4.38416,1699.1,1699.0,7.49843]
[1745345621300,4.38416,1699.1,1699.0,6.322]
[1745345621505,4.38416,1699.1,1699.0,7.49843]
[1745345622212,3.2078,1699.1,1699.0,7.49843]
[1745345624512,1.17636,1699.1,1699.0,6.322]
[1745345624713,1.17631,1699.2,1699.0,7.49837]
[1745345624912,4.9269,1699.3,1699.1,2.88763]
[1745345625212,6.10312,1699.3,1699.2,1.7113]
[1745345625607,3.2078,1699.3,1699.2,2.88759]
[1745345625914,4.38402,1699.3,1699.2,3.0592]
[1745345626115,6.01962,1699.3,1699.2,9.3812]
[1745345626501,6.01962,1699.3,1699.2,6.322]
[1745345627103,4.38402,1699.3,1699.2,7.49829]
[1745345627312,5.91,1699.5,1699.4,1.17615]
[1745345627618,1.17603,1699.6,1699.5,1.17608]
[1745345627814,4.38383,1699.6,1699.5,1.17608]
[1745345628208,4.38383,1699.6,1699.5,7.49808]
[1745345629205,3.2078,1699.6,1699.5,1.17608]
[1745345629922,4.38381,1699.6,1699.5,1.17608]
[1745345630319,6.14301,1699.6,1699.5,1.17608]
[1745345631410,6.14301,1699.6,1699.4,1.7521]
[1745345631411,1.17611,1699.5,1699.4,1.17609]
[1745345631613,1.6883,1699.5,1699.4,1.17609]
[1745345632014,2.86438,1699.5,1699.4,1.17609]
[1745345632211,4.38385,1699.6,1699.5,1.17608]
[1745345632411,4.38381,1699.6,1699.5,1.17608]
[1745345632617,2.8643,1699.7,1699.6,1.17601]
[1745345633514,52.44544238,1699.8,1699.5,1.7141]
[1745345633710,49.92661238,1699.8,1699.7,1.17594]
[1745345633908,3.21661238,1699.8,1699.7,1.17594]
[1745345634105,0.00881238,1699.8,1699.7,12.49794]
[1745345634918,49.9178,1700.1,1700.0,1.17574]
[1745345635120,3.2078,1700.1,1700.0,1.17574]
[1745345635521,4.38347,1700.1,1700.0,1.17574]
[1745345636111,45.18347,1700.1,1700.0,1.17574]
[1745345636316,44.0078,1700.1,1700.0,1.17574]
[1745345636522,11.5114,1700.5,1700.3,1.17546]
[1745345636725,5.6014,1700.5,1700.4,1.6886]
[1745345637023,49.6092,1700.5,1700.4,1.6886]
[1745345637419,1.17553,1700.3,1700.2,2.7528]
[1745345637716,3.2078,1700.3,1700.2,2.7528]
[1745345637911,3.2078,1700.3,1700.2,3.9284]
[1745345638124,3.2078,1700.3,1700.2,5.6072]
[1745345638319,3.2078,1700.3,1700.2,4.2148]
[1745345639318,4.38333,1700.3,1700.2,4.2148]
[1745345639524,3.2078,1700.3,1700.2,4.2148]
[1745345640528,3.2078,1700.3,1699.9,1.40121238]
[1745345640828,3.2078,1700.1,1700.0,2.874]
[1745345641026,3.2078,1700.1,1700.0,1.1757]
[1745345642628,3.2078,1700.1,1700.0,2.6143]
[1745345645033,3.2078,1700.1,1699.9,0.00881238]
[1745345645328,2.88074,1700.0,1699.9,0.00881238]
[1745345645632,1.705,1700.0,1699.9,1.18462238]
[1745345646326,2.88074,1700.0,1699.9,1.18462238]
[1745345647324,1.17574,1700.0,1699.9,1.18462238]
[1745345647523,4.38353,1700.1,1700.0,1.17574]
[1745345647733,5.99703,1700.1,1700.0,1.17574]
[1745345648526,4.8213,1700.1,1700.0,1.17574]
[1745345648729,3.2078,1700.1,1700.0,1.17574]
[1745345650125,4.38347,1700.1,1700.0,1.17574]
[1745345650321,6.08857,1700.1,1700.0,1.17574]
[1745345650535,1.17574,1700.0,1699.9,0.00881238]
[1745345650828,11.60254,1700.0,1699.9,0.00881238]
[1745345651231,17.92454,1700.0,1699.9,0.00881238]
[1745345652333,11.60254,1700.0,1699.9,0.00881238]
[1745345652729,11.69347203,1700.0,1699.9,0.00881238]
[1745345653033,11.60254,1700.0,1699.9,0.00881238]
[1745345659638,10.18394,1700.0,1699.9,0.00881238]
[1745345659936,10.18394,1700.0,1699.9,1.61861238]
[1745345660528,7.08574,1700.0,1699.9,1.61861238]
[1745345660932,8.74644,1700.0,1699.9,1.61861238]
[1745345661337,8.74644,1700.0,1699.9,0.00881238]
[1745345664438,1.17611,1699.6,1699.5,1.17607]
[1745345664734,4.38379,1699.7,1699.6,2.87983052]
[1745345666541,1.17601,1699.6,1699.5,1.18485238]
[1745345666735,1.17601,1699.6,1699.5,2.85505238]
[1745345667841,1.17601,1699.6,1699.5,0.00881238]
[1745345668027,2.79561,1699.6,1699.5,0.00881238]
[1745345669031,3.25815065,1699.6,1699.5,0.00881238]
[1745345669341,7.68215065,1699.6,1699.5,0.00881238]
[1745345669643,7.21961,1699.6,1699.5,0.00881238]
[1745345670345,7.21961,1699.6,1699.5,1.18489238]
[1745345670838,5.60001,1699.6,1699.5,1.18489238]
[1745345671037,5.60001,1699.6,1699.5,2.88029238]
[1745345671535,4.424,1699.6,1699.5,2.88029238]
[1745345671735,1.17601,1699.6,1699.5,2.88029238]
[1745345672637,1.17601,1699.6,1699.5,4.27459238]
[1745345673740,1.17601,1699.6,1699.5,3.09851238]
[1745345674141,2.79711,1699.6,1699.5,3.09851238]
[1745345675843,2.79711,1699.6,1699.5,4.27459238]
[1745345676044,1.17601,1699.6,1699.5,4.27459238]
[1745345676343,1.17601,1699.6,1699.5,3.09851238]
[1745345676544,1.17601,1699.6,1699.5,4.27459238]
[1745345677138,10.2938,1699.7,1699.6,1.17601]
[1745345677339,10.2938,1699.7,1699.6,2.87621]
[1745345678342,10.2938,1699.7,1699.6,1.7002]
[1745345679043,1.18475238,1699.8,1699.7,1.17594]
[1745345680352,0.00881238,1699.8,1699.7,6.17594]
[1745345681140,0.00881238,1699.8,1699.7,12.49794]
[1745345682147,0.00881238,1699.8,1699.7,7.49794]
[1745345683446,1.18468238,1699.8,1699.7,6.322]
[1745345683647,2.87778238,1699.8,1699.7,8.1011]
[1745345684147,2.87778238,1699.8,1699.7,1.7791]
[1745345685041,1.17594,1699.7,1699.6,1.17601]
[1745345685245,1.17601,1699.6,1699.5,4.35828238]
[1745345685553,6.07688,1699.7,1699.6,1.17601]
[1745345685744,6.07684,1699.7,1699.6,1.7791]
[1745345686941,6.07684,1699.7,1699.6,2.95511]
[1745345687649,6.07684,1699.7,1699.6,1.7791]
[1745345687849,6.07684,1699.7,1699.6,2.95511]
[1745345688450,6.07684,1699.7,1699.6,1.7791]
[1745345688844,4.9009,1699.7,1699.5,0.00881238]
[1745345689053,6.0769,1699.7,1699.6,1.17601]
[1745345691353,1.17601,1699.6,1699.5,0.00881238]
[1745345691552,4.35481,1699.6,1699.5,0.00881238]
[1745345692556,1.17622,1699.3,1699.2,1.4115]
[1745345692752,4.38402,1699.3,1699.2,1.4115]
[1745345692953,45.18402,1699.3,1699.2,1.4115]
[1745345693155,1.17629,1699.2,1699.1,1.17634]
[1745345693352,1.17642,1699.1,1699.0,1.17639]
[1745345693554,4.38422,1699.1,1699.0,1.17639]
[1745345693750,5.99742,1699.1,1699.0,1.17639]
[1745345694254,5.99742,1699.1,1699.0,7.49839]
[1745345695756,11.73792,1699.1,1699.0,6.322]
[1745345698260,11.73792,1699.1,1699.0,8.09]
[1745345698857,11.73792,1699.1,1699.0,6.322]
[1745345700551,17.21183199,1699.1,1699.0,5.04087]
[1745345701559,17.30281921,1699.1,1699.0,5.04087]
[1745345701758,17.30281921,1699.1,1699.0,2.90997]
[1745345702161,12.21183199,1699.1,1699.0,2.90997]
[1745345703060,11.73792,1699.1,1699.0,2.90997]
[1745345703463,10.12472,1699.1,1699.0,2.90997]
[1745345703661,11.91092,1699.1,1699.0,2.90997]
[1745345704755,11.91092,1699.1,1699.0,4.57547]
[1745345705559,3.2078,1699.1,1699.0,5.7519]
[1745345705763,49.60607,1699.3,1699.2,1.17629]
[1745345706063,49.60607,1699.3,1699.1,4.26692]
[1745345706064,1.17629,1699.2,1699.1,4.26692]
[1745345706659,49.60609,1699.3,1699.2,1.17629]
[1745345706961,49.60609,1699.3,1699.2,4.25929]
[1745345707155,49.60609,1699.3,1699.2,10.58129]
[1745345707561,45.18409,1699.3,1699.2,10.58129]
[1745345708160,3.2078,1699.3,1699.2,10.58129]
[1745345708359,3.2078,1699.3,1699.2,15.58129]
[1745345709855,40.8,1699.6,1699.5,1.17608]
[1745345710055,1.176,1699.7,1699.6,1.17601]
[1745345710557,1.17603,1699.6,1699.4,3.2269]
[1745345710765,1.17603,1699.6,1699.5,1.17605]
[1745345711160,1.17603,1699.6,1699.5,7.49805]
[1745345711361,1.17603,1699.6,1699.5,6.322]
[1745345711561,4.38383,1699.6,1699.5,6.322]